Cogmind - Beta 13 @@@ ROGUE MODE // 2024.04.28 @ 05:04:56 Player: A Moose Result: Destroyed by as-59023 with Assembled Rifle Performance ------------- Evolutions (0) 0 Regions Visited (2) 400 Robots Destroyed (8) 40 Value Destroyed (116) 116 Prototype IDs (0) 0 Alien Tech Used (0) 0 Bonus (-9) -9 TOTAL SCORE: 547 Bonus ------- Friendly Fire -9 Cogmind --------- Core Integrity 0/250 Matter 230/300 Energy 250/250 System Corruption 0% Temperature Cool (6) Movement Rolling (80) Location -10/Mines Parts ------- > --- POWER (1) -------- Ion Engine > --- PROPULSION (2) --- Wheel Wheel > --- UTILITY (2) ------ Medium Storage Unit Targeting Computer > --- WEAPON (2) ------- Medium Laser Grenade Launcher > --- INVENTORY (10) --- Light Ion Engine Wheel Wheel Wheel Wheel Wheel Compact Wheel Medium Matter Pod (100) Peak State ------------ > --- POWER ------------ Ion Engine > --- PROPULSION ------- Wheel Compact Wheel > --- UTILITY ---------- Medium Storage Unit Improved Terrain Scanner > --- WEAPON ----------- Medium Laser Assault Rifle > --- INVENTORY -------- Light Ion Engine Wheel Wheel Wheel Wheel Wheel Wheel Compact Wheel Medium Matter Pod Grenade Launcher [Rating: 10] Favorites ----------- Power Ion Engine Engine Ion Engine Propulsion Wheel Wheel Wheel Utility Medium Storage Unit Device Improved Terrain Scanner Storage Medium Storage Unit Processor Targeting Computer Weapon Medium Laser Energy Gun Medium Laser Ballistic Gun Assault Rifle Launcher Grenade Launcher Build | -11 -10 -10 ------- Run | Yrd Mat Min Slots Evolved . | . . . Power . | . . . Propulsion . | . . . Utility . | . . . Weapon . | . . . Parts Attached 11 | 6 2 3 Power 1 | 1 . . Engine 1 | 1 . . Core . | . . . Reactor . | . . . Propulsion 3 | 2 . 1 Treads . | . . . Leg . | . . . Wheel 3 | 2 . 1 Hover . | . . . Flight . | . . . Utility 4 | 1 2 1 Device 1 | . 1 . Storage 2 | 1 1 . Processor 1 | . . 1 Hackware . | . . . Protection . | . . . Artifact . | . . . Weapon 3 | 2 . 1 Energy Gun 1 | 1 . . Energy Cannon . | . . . Ballistic Gun 1 | 1 . . Ballistic Cannon . | . . . Launcher 1 | . . 1 Special Weapon . | . . . Impact Weapon . | . . . Slashing Weapon . | . . . Piercing Weapon . | . . . Special Melee Weapon . | . . . Unidentified Prototypes . | . . . Parts Lost 3 | . . 3 Power . | . . . Propulsion 1 | . . 1 Utility 1 | . . 1 Weapon 1 | . . 1 Highest Loss Streak 3 | . . 3 To Critical Strikes . | . . . Average Slot Usage (%) 97 | . 98 97 Engine 14 | . 14 14 Wheel 26 | . 28 26 Device 11 | . 12 10 Storage 14 | . 14 14 Processor 2 | . . 3 Energy Gun 14 | . 14 14 Ballistic Gun 11 | . 14 10 Launcher 2 | . . 3 Naked Turns . | . . . Heaviest Build 20 | 14 20 20 Greatest Support 26 | 26 26 26 Greatest Overweight (x) 1 | . . 1 Average Overweight (x) . | . . . Largest Inventory Capacity 10 | 8 10 10 Average Capacity 9 | 7 9 10 Most Carried 10 | 8 10 10 Average Carried 7 | 4 8 9 Final Capacity 10 | 8 10 10 Final Carried 10 | 8 10 8 Class Distribution -------------------- 100% | Mutant Dominant Class ---------------- Mutant | -10/Materials Mutant | -10/Mines Resources | -11 -10 -10 ----------- Run | Yrd Mat Min Matter Collected 466 | 286 26 154 Remotely . | . . . Salvage Created 343 | 120 43 180 Parts 20 | 12 2 6 Haulers Intercepted 1 | . 1 . Recyclers Shooed . | . . . Parts Field Recycled . | . . . Retrieved Matter . | . . . Parts Self-Destructed . | . . . Prevented . | . . . Kills | -11 -10 -10 ------- Run | Yrd Mat Min Combat Hostiles Destroyed 5 | . . 5 Guns 2 | . . 2 AOE 3 | . . 3 Classes Destroyed 5 | 2 1 2 Tunneler 3 | 3 . . Hauler 1 | . 1 . Recycler 2 | 1 . 1 Grunt 2 | . . 2 Assembled 3 | . . 3 Best Kill Streak 3 | 3 1 2 Combat Bots Only 2 | . . 2 Max Kills in Single Turn 1 | 1 1 1 Gunslinging . | . . . Exploded 1 | . . 1 Melee . | . . . Uniques/NPCs Destroyed . | . . . Combat | -11 -10 -10 -------- Run | Yrd Mat Min Hostile Shots Fired 26 | . . 26 Missed 5 | . . 5 Damage Taken 538 | . . 538 Core 254 | . . 254 Absorbed by Shields . | . . . Core Remaining (%) 100 | 100 . . Volleys Fired 40 | 12 2 26 Largest 2 | 2 2 2 Hottest 80 | 70 70 80 Shots Fired 80 | 24 4 52 Gun 77 | 24 4 49 Cannon . | . . . Launcher 3 | . . 3 Special . | . . . Kinetic 37 | 12 2 23 Thermal 40 | 12 2 26 Explosive 3 | . . 3 Electromagnetic . | . . . Robot Hit Streak 9 | 6 9 4 Robot Miss Streak 5 | 2 . 5 Penetration Max . | . . . Secondary Targets 1 | . . 1 Max Gunslinging Chain 1 | . . 1 Shots Hit Robots 44 | 17 3 24 Core Hits 19 | 5 2 12 Critical Kills . | . . . Critical Parts Destroyed . | . . . Critical Strikes 3 | 1 . 2 Burn 3 | 1 . 2 Melee Attacks . | . . . Impact . | . . . Slashing . | . . . Piercing . | . . . Sneak Attacks . | . . . Combat Hostiles . | . . . Follow-up Attacks . | . . . Damage Inflicted 664 | 213 37 414 Guns 543 | 213 37 293 Cannons . | . . . Explosions 121 | . . 121 Melee . | . . . Ramming . | . . . Kinetic 269 | 89 11 169 Thermal 274 | 124 26 124 Explosive 121 | . . 121 Electromagnetic . | . . . Impact . | . . . Slashing . | . . . Piercing . | . . . Highest Corruption . | . . . Average Corruption . | . . . Corruption Purged . | . . . Corruption Blocked . | . . . Overload Shots . | . . . Overflow Damage 12 | . . 12 Projectiles . | . . . Explosions 12 | . . 12 Melee . | . . . Knockbacks . | . . . Impact . | . . . Kinetic . | . . . Secondary . | . . . Self-Inflicted Damage . | . . . Shots . | . . . Rammed . | . . . Targets Rammed . | . . . Kicked . | . . . Crushed . | . . . Highest Temperature 183 | . 18 183 Average Temperature 58 | . 10 61 Received Heat Transfer 133 | . . 133 Siege Activations . | . . . Robots Corrupted . | . . . Combat Hostiles . | . . . Parts Fried . | . . . Impact Corruptions . | . . . Robots Melted . | . . . Combat Hostiles . | . . . Parts Melted . | . . . Heat Transferred 1036 | 444 74 518 Parts Sabotaged . | . . . Parts Stolen . | . . . Parts Stripped . | . . . Power Chain Reactions . | . . . Alert | -11 -10 -10 ------- Run | Yrd Mat Min Peak Influence 62 | 20 20 62 Initial 13 | . 13 7 Average 28 | 9 17 43 Maximum Alert Level . | . . . Low Security (%) 100 | 100 100 100 Level 1 . | . . . Level 2 . | . . . Level 3 . | . . . Level 4 . | . . . Level 5 . | . . . High Security . | . . . Max Security . | . . . Squads Dispatched . | . . . Investigation . | . . . Extermination . | . . . Reinforcement . | . . . Assault . | . . . Garrison . | . . . Intercept . | . . . Searches Triggered . | . . . Construction Impeded . | . . . Haulers Reinforced . | . . . Active Scanning Responses . | . . . Cargo Convoy Interrupts . | . . . Stealth | -11 -10 -10 --------- Run | Yrd Mat Min Distress Signals . | . . . Communications Jammed . | . . . Distress Signals . | . . . Times Spotted 14 | . 1 13 Peak Tracking Total 8 | . 2 8 Tactical Retreats 1 | . . 1 Traps | -11 -10 -10 ------- Run | Yrd Mat Min Traps Triggered . | . . . Indirectly . | . . . Trap Hack Attempts . | . . . Triggered . | . . . Disarmed . | . . . Reprogrammed . | . . . Reused . | . . . Traps Extracted . | . . . Installed . | . . . Triggered . | . . . Machines | -11 -10 -10 ---------- Run | Yrd Mat Min Machines Disabled . | . . . Max in Single Turn . | . . . Machines Repaired . | . . . Machines Dismantled . | . . . Machines Sabotaged . | . . . Overloaded Fab Kills . | . . . Hacking | -11 -10 -10 --------- Run | Yrd Mat Min Machines Accessed 2 | . 2 . Terminals 2 | . 2 . Fabricators . | . . . Repair Stations . | . . . Recycling Units . | . . . Scanalyzers . | . . . Garrison Access . | . . . Total Hacks 4 | . 4 . Successful . | . . . Failed 4 | . 4 . Catastrophic 1 | . 1 . Database Lockouts . | . . . Manual 1 | . 1 . Terminals 4 | . 4 . Fabricators . | . . . Repair Stations . | . . . Recycling Units . | . . . Scanalyzers . | . . . Garrison Access . | . . . Terminal Hacks . | . . . Fabricator Hacks . | . . . Repair Station Hacks . | . . . Recycling Unit Hacks . | . . . Scanalyzer . | . . . Garrison Access Hacks . | . . . Unauthorized Hacks . | . . . Terminals . | . . . Fabricators . | . . . Repair Stations . | . . . Recycling Units . | . . . Scanalyzers . | . . . Garrison Access . | . . . Data Cores Recovered . | . . . Used . | . . . Hacking Detections 2 | . 2 . Full Trace Events 1 | . 1 . Feedback Events . | . . . Feedback Blocked . | . . . Robot Schematics Acquired . | . . . Robots Built . | . . . Authchips . | . . . Time . | . . . Total Robot Build Rating . | . . . Part Schematics Acquired . | . . . Parts Built . | . . . Authchips . | . . . Time . | . . . Total Part Build Rating . | . . . Parts Repaired . | . . . Time . | . . . Parts Recycled . | . . . Recycled Matter . | . . . Retrieved Matter . | . . . Retrieved Components . | . . . Parts Scanalyzed . | . . . Part Schematics Acquired . | . . . Parts Damaged . | . . . Bothacking | -11 -10 -10 ------------ Run | Yrd Mat Min Used RIF Installer . | . . . Robots Hacked . | . . . Non-combat . | . . . Combat . | . . . Robot Hacks Applied . | . . . Relay Couplers Released . | . . . Fabnet Peak Effective % . | . . . Robots Rewired . | . . . Allies Hacked . | . . . Hacks Repelled . | . . . Allies | -11 -10 -10 -------- Run | Yrd Mat Min Total Allies . | . . . Largest Group . | . . . Highest-Rated Group . | . . . Highest-Rated Ally . | . . . Total Orders . | . . . Ally Attacks . | . . . Total Damage . | . . . Kills . | . . . Allies Corrupted . | . . . Allies Melted . | . . . Intel | -11 -10 -10 ------- Run | Yrd Mat Min Robot Analysis Total . | . . . Derelict Logs Recovered 1 | . . 1 Drone Launches . | . . . Drone Recoveries . | . . . Exploration | -11 -10 -10 ------------- Run | Yrd Mat Min Turns Passed 439 | 109 114 216 Spaces Moved 314 | 59 111 144 Core 12 | 12 . . Treads . | . . . Legs . | . . . Wheels 302 | 47 111 144 Hover . | . . . Flight . | . . . Fastest Speed 50 | 50 90 80 Average Speed 86 | 81 90 86 Slowest Speed 95 | 90 90 95 Overloaded Moves . | . . . Propulsion Burnouts . | . . . Robots Hopped . | . . . Cave-ins Triggered . | . . . Exploration Rate (%) 22 | 3 22 43 Regions Visited 2 Branch Regions 1 Pre-discovered Areas 1 | . . 1 Known Exits Taken . | . . . Unknown Exits Taken 2 | 1 1 . Scrap Searched 1 | . . 1 Spaces Dug 19 | . . 19 Terrain Destroyed 23 | . . 23 Melee . | . . . Projectile . | . . . AOE 23 | . . 23 Terrain Rammed . | . . . Walls Destroyed . | . . . Machines Disabled . | . . . Actions | -11 -10 -10 --------- Run | Yrd Mat Min Total 403 | 96 121 186 Wait 14 | 4 . 10 Move 312 | 58 110 144 Hop . | . . . Pick Up 22 | 15 5 2 Fast Attach . | . . . Attach 10 | 6 1 3 Detach . | . . . Swap 1 | . 1 . Drop 4 | 1 2 1 Fire 40 | 12 2 26 Melee . | . . . Ram . | . . . Kick . | . . . Crush . | . . . Escape Stasis . | . . . Rewire . | . . . Trap . | . . . Miscellaneous . | . . . Route ------- -11/Scrapyard -10/Materials -10/Mines History --------- Turn | Location | Event 18 | -11/Scrapyard | Discovered new exit (range 16) 110 | -11/Scrapyard | Entered Materials 195 | -10/Materials | Discovered new exit (range 7) 224 | -10/Materials | Entered Mines 300 | -10/Mines | Assembled infested the area 305 | -10/Mines | Assisted by a Guerilla fighting off Assembled 309 | -10/Mines | Build established: Mutant 336 | -10/Mines | Learned location of Zion (-7) 359 | -10/Mines | Core integrity fell below 50% 365 | -10/Mines | Core integrity fell below 20% 411 | -10/Mines | Lost 3 parts (1n1u1w) 440 | -10/Mines | Destroyed by as-59023 with Assembled Rifle Last Messages --------------- K-01 Serf collects debris. The unstable cave ceiling collapses. as-51001 suffers critical hit (Burn). Assault Rifle destroyed. Imp. Terrain Scanner destroyed. K-01 Serf collects debris. Destroyed Asb. F-torch. as-88856 destroyed. The unstable cave ceiling collapses. K-01 Serf collects debris. The unstable cave ceiling collapses. Searching scrap... Found Targeting Computer. Found Structural Scanner. Found Seismic Detector. Found 11 Matter. Acquired 11 matter. Acquired Targeting Computer. as-76818 destroyed. as-74630 destroyed. Map ----- +----------------------------------------------------+ | ?????????????????????????????????????????????????? | | ?????????????????????????????????????????????????? | | ??????????????????#####??####????????????????????? | | ?????????????????## ### ##???????????????????? | | ?????????????????# #???????????????????? | | ?????????????????# #???????????????????? | | ??????????????????# #???????????????????? | | ?????????????????## #????????????#???????? | | ???????????????### #?????????????????????? | | ??????????????## #??#????#?????#??#####? | | ??????????????# ##?????##?###????## # | | ??????????????# ##????? ?? #???## | | ??????????????# ###?#### #???# #???# | | ??????????????## ###??#! ! #?### #???# ## | | ???????????????## ###### ###### ##??????## | | ????????????????# ###?# ####???## | | ????????????????# ##### ### ###?# | | ????????????????## #??## ! # #### | | ?????????????????# ##### # # ## | | ?????????????????## ##### # | | ??????????????????###### """ % # | | ??????????????????????# """ ## # # | | ??????????????????????# """ #### ## ## | | ??????????????????????## """ #??# # ###### | | ???????????????????????# * # ### # #??#?# | | ???????????????????????# @ =%| # # ###?## | | ??????????????????????## = ## #### | | ??????????????????????# ## ### ## | | ??????????????????????# ###?# % * | | ?????????????????????? ##??? =%*%! %* ! | | ?????????????????????%a #??## #####! =%!=% | | ???????????????????# #???## # | | ???????????????????#a######????##?## # ### | | ???????????????????#%???????????????### ### | | ??????????????????? ???????????????????####### | | ?????????????????? ?????????????????????#### # | | ?????????????????? ?????????????????????## # | | ????????????????? ?????????????#???? ???# ## | | ????????????????????????????????????????# #? | | ????????????????????????????????????????# # | | ???????????????????????????????#????????## | | ?????????????????????????????????????????## | | ????????????????????????????? ????????????# | | ????????????????????????????????????????#?# | | ?????????????????????????????????????????? ## | | ????????????????????????????????????????? ##?# | | ????????????????????????????????????????? ????## | | ????????????????????????????????????????? ????#? | | ????????????????????????????????????????## ?????? | | ?????????????????????????????????????????## ?????? | +----------------------------------------------------+ Best States ------------- Heat Dissipation 25 Energy Generation 10 Energy Capacity 250 Matter Stores 300 Matter Capacity 300 Sight Range 16 Terrain Scan Range 16 Terrain Scan Density 10 Evasion (%) 50 Targeting Accuracy 5 Item Schematics ----------------- None Robot Schematics ------------------ None Fabricated ------------ Nothing Alien Tech Used ----------------- None Achievements -------------- None Challenges ------------ None Game ------ Seed FlakChipArchive Manual? 0 Play Time 00:07:05 Cumulative 65.0 hours Start 2024.04.28 @ 05:00:24 End 2024.04.28 @ 05:04:56 Sessions 1 Manual Loads 0 Difficulty Rogue Special Mode None Game No. 74 Rogue 65 Adventurer 9 Explorer 0 Win Type - Total 0 Types 0/0/0/0/0/0/0/0/0 Lore% 38 Gallery% 53 Achievement% 41 Wizard Run 0 Options --------- Layout 1 ASCII 0 Keyboard 0 Movement Numpad Keybinds 0 Fullscreen 1 Font 24/Smallcaps Map View 50x35 Zoom Use 0% Tactical HUD 0 Map Filters NONE Filters NONE Steam 1 RUN: e73bb033-4d17-4a70-a2ca-b9adfc05a6c1